bitfinex/quotes_SOLUSD_20250814
["timestamp","ask_amount","ask_price","bid_price","bid_amount"]
[1755192063274,18.52599908,193.46,193.4,18.52599908]
[1755192063506,18.52599908,193.46,193.39,0.7]
[1755192063778,5.16849286,193.48,193.39,0.7]
[1755192063779,18.52599908,193.47,193.41,18.52599908]
[1755192063980,19.18599908,193.49,193.43,18.52599908]
[1755192064486,15.10621557,193.48,193.43,18.52599908]
[1755192064656,15.10621557,193.48,193.43,19.22599908]
[1755192065294,18.52599908,193.48,193.39,0.7]
[1755192065458,0.66,193.47,193.41,18.52599908]
[1755192066079,19.18599908,193.47,193.41,18.52599908]
[1755192066283,24.35495222,193.47,193.41,18.52599908]
[1755192066577,18.52599908,193.56,193.46,44.52599908]
[1755192066781,18.52599908,193.56,193.5,18.52599908]
[1755192066968,0.66,193.57,193.49,18.52599908]
[1755192067179,15.505077,193.65,193.53,18.52599908]
[1755192067395,5.59968269,193.81,193.53,18.52599908]
[1755192067396,5.1650458,193.61,193.57,18.52599908]
[1755192067701,19.18599908,193.63,193.57,18.52599908]
[1755192067998,0.72,193.63,193.57,18.52599908]
[1755192068205,0.72,193.63,193.55,0.7]
[1755192068501,18.58599908,193.63,193.57,18.52599908]
[1755192068795,0.06,193.63,193.58,18.52599908]
[1755192069268,5.36555607,193.59,193.56,18.52599908]
[1755192069475,0.2,193.59,193.58,44.52599908]
[1755192069672,0.2,193.59,193.58,26.0]
[1755192069892,0.2,193.59,193.57,18.52599908]
[1755192070092,0.2,193.59,193.58,18.52599908]
[1755192070299,0.2,193.59,193.58,24.39182199]
[1755192070779,0.2,193.59,193.58,19.22599908]
[1755192070973,0.2,193.59,193.57,18.52599908]
[1755192071676,0.2,193.59,193.58,19.22599908]
[1755192072677,0.2,193.59,193.58,24.39182199]
[1755192073093,0.2,193.59,193.58,19.22599908]
[1755192073705,0.2,193.59,193.58,24.39182199]
[1755192073998,0.06,193.63,193.61,26.0]
[1755192074206,0.06,193.63,193.62,19.22599908]
[1755192074584,0.06,193.63,193.62,18.52599908]
[1755192074793,0.06,193.63,193.61,18.52599908]
[1755192074985,0.06,193.63,193.6,18.52599908]
[1755192075183,0.06,193.63,193.62,18.52599908]
[1755192075381,0.06,193.63,193.62,19.22599908]
[1755192076201,0.66,193.76,193.65,26.0]
[1755192076396,23.6872894,193.75,193.69,18.52599908]
[1755192076605,23.6872894,193.75,193.66,39.34]
[1755192076606,5.16129032,193.75,193.66,39.34]
[1755192076798,12.90189399,193.77,193.7,18.52599908]
[1755192076799,18.52599908,193.76,193.7,18.52599908]
[1755192077106,0.66,193.76,193.71,18.52599908]
[1755192077407,0.66,193.76,193.72,18.52599908]
[1755192077605,0.66,193.76,193.67,5.86342231]
[1755192077807,0.66,193.76,193.71,18.52599908]
[1755192078106,23.68649929,193.78,193.73,18.52599908]
[1755192078306,24.34649929,193.78,193.73,18.52599908]
[1755192078528,0.66,193.82,193.76,18.52599908]
[1755192078710,19.18599908,193.82,193.76,18.52599908]
[1755192079016,19.18599908,193.82,193.75,18.52599908]
[1755192079017,18.52599908,193.8,193.75,18.52599908]
[1755192079310,0.66,193.8,193.76,18.52599908]
[1755192079488,5.15916008,193.83,193.75,18.52599908]
[1755192079489,18.52599908,193.81,193.75,18.52599908]
[1755192079692,5.81916008,193.83,193.76,18.52599908]
[1755192079909,18.52599908,193.82,193.76,18.52599908]
[1755192080107,24.34515916,193.83,193.77,18.52599908]
[1755192080609,18.52599908,193.81,193.75,18.52599908]
[1755192080811,18.52599908,193.81,193.71,39.32]
[1755192080812,20.26537565,193.83,193.71,39.32]
[1755192081018,18.52599908,193.74,193.68,18.52599908]
[1755192081202,19.18599908,193.74,193.68,18.52599908]
[1755192081518,18.52599908,193.73,193.67,18.52599908]
[1755192081719,19.18599908,193.74,193.68,18.52599908]
[1755192082234,18.52599908,193.77,193.71,18.52599908]
[1755192082418,5.16155672,193.74,193.69,18.52599908]
[1755192082731,5.16155672,193.74,193.62,39.3]
[1755192082732,18.52599908,193.7,193.62,18.52599908]
[1755192082937,39.96,193.73,193.62,18.52599908]
[1755192082938,18.52599908,193.68,193.62,18.52599908]
[1755192083112,19.18599908,193.69,193.63,18.52599908]
[1755192083304,33.1716641,193.74,193.67,18.52599908]
[1755192083509,25.80271464,193.78,193.73,18.52599908]
[1755192083510,0.66,193.78,193.73,18.52599908]
[1755192083811,30.0270004,193.89,193.76,18.52599908]
[1755192083812,0.66,193.81,193.76,18.52599908]
[1755192084206,33.63221465,193.82,193.76,18.52599908]
[1755192084408,0.06,193.83,193.74,0.7]
[1755192084409,24.34611919,193.8,193.74,18.52599908]
[1755192085016,24.34611919,193.8,193.7,0.7]
[1755192085017,33.63221465,193.79,193.7,0.7]
[1755192085208,18.52599908,193.74,193.67,18.52599908]
[1755192085525,19.18599908,193.74,193.67,18.52599908]
[1755192085902,0.66,193.74,193.67,18.52599908]
[1755192086104,0.66,193.74,193.69,18.52599908]
[1755192086301,19.18599908,193.74,193.66,0.7]
[1755192086529,19.18599908,193.74,193.67,18.52599908]
[1755192086530,5.8219397,193.73,193.67,18.52599908]
[1755192086835,5.82107331,193.76,193.69,18.52599908]
[1755192087010,0.66,193.79,193.74,18.52599908]
[1755192087405,39.3,193.8,193.75,18.52599908]
[1755192087606,0.72,193.83,193.77,18.52599908]
[1755192087822,63.70523012,193.83,193.77,18.52599908]
[1755192088101,40.02,193.83,193.77,18.52599908]
[1755192088305,0.06,193.83,193.78,18.52599908]
[1755192088513,18.52599908,193.82,193.75,5.86124929]
[1755192088718,0.06,193.83,193.78,18.52599908]
[1755192089107,0.72,193.83,193.76,18.52599908]
[1755192089312,0.72,193.83,193.74,5.16153774]
[1755192089313,19.24599908,193.83,193.77,18.52599908]
[1755192089729,0.06,193.83,193.81,18.52599908]
[1755192089942,0.06,193.83,193.82,18.52599908]
[1755192090448,0.06,193.83,193.82,19.22599908]
[1755192090653,0.06,193.83,193.82,24.38542535]
[1755192091125,0.06,193.83,193.82,19.22599908]
[1755192091639,0.06,193.83,193.82,24.38542535]
[1755192092749,0.06,193.83,193.82,19.22599908]
[1755192092946,0.06,193.83,193.81,18.52599908]
[1755192093250,0.73,193.83,193.74,39.95]
[1755192093434,0.06,193.83,193.79,18.52599908]
[1755192093748,0.06,193.83,193.76,0.67]
[1755192093749,0.67,193.82,193.76,18.52599908]
[1755192093948,0.67,193.82,193.72,39.28]
[1755192093949,0.67,193.82,193.74,18.52599908]
[1755192094130,0.06,193.83,193.81,18.52599908]
[1755192094338,0.06,193.83,193.82,19.19599908]
[1755192094546,0.67,193.94,193.85,26.0]
[1755192094850,0.49119618,194.02,193.91,18.52599908]
[1755192094851,19.19599908,193.98,193.91,18.52599908]
[1755192095036,5.15437348,194.01,193.94,18.52599908]
[1755192095352,0.67,194.0,193.88,65.42]
[1755192095534,0.49119618,194.02,193.96,18.52599908]
[1755192095851,5.15090381,194.15,194.04,26.0]
[1755192096053,5.15090381,194.15,194.1,18.52599908]
[1755192096350,42.38992832,194.24,194.13,18.52599908]
[1755192096558,0.67,194.19,194.15,18.52599908]
[1755192096858,0.67,194.18,194.12,58.22599908]
[1755192097036,19.19599908,194.18,194.12,18.52599908]
[1755192097240,19.19599908,194.18,194.09,0.67]
[1755192097241,0.67,194.18,194.1,39.7]
[1755192097428,0.67,194.18,194.13,18.52599908]
[1755192097630,18.52599908,194.19,194.1,39.7]
[1755192097852,0.67,194.17,194.1,18.52599908]
[1755192098050,18.52599908,194.16,194.09,18.52599908]
[1755192098233,0.67,194.15,194.03,39.7]
[1755192098434,18.52599908,194.11,194.05,18.52599908]
[1755192098633,15.77621557,194.15,194.0,5.82454949]
[1755192098634,18.52599908,194.08,194.0,5.82454949]
[1755192098853,24.34821804,194.1,194.03,18.52599908]
[1755192099154,5.15090247,194.15,194.08,18.52599908]
[1755192099358,5.15090247,194.15,194.04,0.67]
[1755192099359,0.67,194.17,194.13,18.52599908]
[1755192099529,18.52599908,194.19,194.13,18.52599908]
[1755192099736,0.67,194.18,194.07,0.67]
[1755192099944,18.52599908,194.17,194.1,18.52599908]
[1755192100141,18.52599908,194.14,194.07,18.52599908]
[1755192100348,18.52599908,194.08,194.02,18.52599908]
[1755192100547,23.67812009,194.1,193.99,0.67]
[1755192100744,0.67,194.14,194.09,18.52599908]
[1755192100955,5.15022384,194.17,194.11,18.52599908]
[1755192101153,0.67,194.18,194.12,18.52599908]
[1755192101424,19.19599908,194.21,194.1,0.67]
[1755192101660,5.20883326,194.22,194.16,18.52599908]
[1755192102038,5.20883326,194.22,194.1,0.67]
[1755192102039,18.52599908,194.19,194.1,0.67]
[1755192102257,18.52599908,194.19,194.13,18.52599908]
[1755192102554,23.67612525,194.17,194.11,18.52599908]
[1755192102734,18.52599908,194.12,194.05,18.52599908]
[1755192102931,18.52599908,194.1,194.0,39.88]
[1755192103129,18.52599908,194.09,194.03,18.52599908]
[1755192103331,18.52599908,194.08,194.02,18.52599908]
[1755192103531,19.19599908,194.08,194.02,18.52599908]
[1755192103755,18.52599908,194.08,194.01,18.52599908]
[1755192104056,18.52599908,194.02,193.89,16.13591]
[1755192104254,0.67,194.03,193.99,18.52599908]
[1755192104428,41.10621557,194.09,194.0,18.52599908]
[1755192104429,0.67,194.06,194.0,18.52599908]
[1755192104628,24.34929621,194.06,193.99,18.52599908]
[1755192104840,5.82329713,194.06,193.99,18.52599908]
[1755192105038,5.82329713,194.06,193.95,0.67]
[1755192105242,24.34929621,194.06,193.99,18.52599908]
[1755192105461,0.67,194.06,193.96,5.1557022]
[1755192105664,0.67,194.06,194.01,18.52599908]
[1755192105841,0.67,194.05,194.0,18.52599908]
[1755192106371,0.67,194.04,193.92,0.67]
[1755192106560,5.15490489,193.99,193.94,18.52599908]
[1755192106876,23.68090397,193.99,193.89,0.67]
[1755192107043,18.52599908,193.96,193.9,18.52599908]
[1755192107243,18.52599908,193.96,193.89,18.52599908]
[1755192107543,0.67,193.98,193.93,18.52599908]
[1755192107742,0.67,193.98,193.94,18.52599908]
[1755192108055,0.67,194.07,193.97,18.52599908]
[1755192108255,19.19599908,194.1,194.03,18.52599908]
[1755192108458,18.52599908,194.09,194.03,18.52599908]
[1755192108656,0.06,194.08,194.04,18.52599908]
[1755192108852,0.06,194.06,194.04,18.52599908]
[1755192109256,0.06,194.06,194.0,12.88657138]
[1755192109556,0.06,194.06,194.05,18.52599908]
[1755192109746,0.06,194.08,194.05,59.13599908]
[1755192109946,0.67,194.17,194.07,18.52599908]
[1755192110158,7.20906761,194.23,194.13,18.52599908]
[1755192110358,18.52599908,194.2,194.14,18.52599908]
[1755192110571,0.67,194.21,194.15,18.52599908]
[1755192110747,18.52599908,194.19,194.13,5.15108608]
[1755192111089,19.19599908,194.18,194.11,23.67771717]
[1755192111374,19.19599908,194.21,194.14,18.52599908]
[1755192111570,15.453164,194.25,194.16,18.52599908]
[1755192111571,18.52599908,194.22,194.16,18.52599908]
[1755192111785,0.67,194.23,194.16,18.52599908]
[1755192111949,15.453164,194.25,194.22,18.52599908]
[1755192112155,5.14610084,194.33,194.24,18.52599908]
[1755192112384,0.67,194.33,194.27,18.52599908]
[1755192112692,5.81511738,194.36,194.3,18.52599908]
[1755192112918,24.34111646,194.36,194.25,5.14800514]
[1755192113066,18.52599908,194.32,194.26,18.52599908]
[1755192113392,18.52599908,194.27,194.21,18.52599908]
[1755192113599,0.67,194.29,194.22,18.52599908]
[1755192113898,0.67,194.29,194.2,18.52599908]
[1755192114103,18.52599908,194.25,194.19,18.52599908]
[1755192114299,19.19599908,194.29,194.17,66.71]
[1755192114594,15.10621557,194.32,194.19,18.52599908]
[1755192114595,18.52599908,194.25,194.19,18.52599908]
[1755192114905,24.34426926,194.24,194.14,0.67]
[1755192115210,18.68894563,194.24,194.17,18.52599908]
[1755192115375,18.52599908,194.23,194.17,18.52599908]
[1755192115904,18.52599908,194.23,194.14,0.67]
[1755192115905,5.14535631,194.35,194.22,18.52599908]
[1755192116206,5.14535631,194.35,194.23,18.52599908]
[1755192116207,18.52599908,194.3,194.23,18.52599908]
[1755192116407,18.52599908,194.29,194.23,18.52599908]
[1755192116811,23.67294436,194.29,194.23,18.52599908]
[1755192117003,5.14694528,194.29,194.23,18.52599908]
[1755192117180,23.67294436,194.29,194.23,18.52599908]
[1755192117512,18.52599908,194.26,194.2,18.52599908]
[1755192117816,18.52599908,194.26,194.15,0.67]
[1755192118013,18.52599908,194.25,194.19,18.52599908]
[1755192118170,18.52599908,194.22,194.13,40.02]
[1755192118377,18.52599908,194.16,194.1,18.52599908]
[1755192118901,5.1506567,194.15,194.1,18.52599908]
[1755192119110,19.19599908,194.14,194.05,40.04]
[1755192119275,19.19599908,194.14,194.08,18.52599908]
[1755192119474,18.52599908,194.16,194.1,18.52599908]
[1755192119710,18.52599908,194.18,194.11,18.52599908]
[1755192119930,5.81933058,194.2,194.14,18.52599908]
[1755192120147,24.34532966,194.2,194.14,18.52599908]
[1755192120438,24.34532966,194.2,194.09,0.67]
[1755192120439,5.81933058,194.2,194.12,18.52599908]
[1755192120633,5.81933058,194.2,194.12,24.05864231]
[1755192120833,29.20862902,194.18,194.12,24.05864231]
[1755192121024,24.71864231,194.17,194.11,24.05864231]
[1755192121226,24.05864231,194.12,194.01,16.126349]
[1755192121527,0.66,194.17,194.1,24.05864231]
[1755192121910,24.05864231,194.16,194.1,24.05864231]
[1755192122296,0.66,194.17,194.12,24.05864231]
[1755192122504,0.66,194.2,194.15,24.05864231]
[1755192123033,29.20746843,194.22,194.16,24.05864231]
[1755192123907,29.20746843,194.22,194.15,24.05864231]
[1755192124532,24.05864231,194.19,194.1,40.69]
[1755192124828,29.2090212,194.17,194.11,24.05864231]
[1755192125802,0.66,194.18,194.12,24.05864231]
[1755192125803,24.71864231,194.18,194.12,24.05864231]
[1755192126221,0.66,194.18,194.13,24.05864231]
[1755192126406,29.2085099,194.18,194.12,24.05864231]
[1755192126606,0.66,194.17,194.12,24.05864231]
[1755192126806,5.14986759,194.18,194.13,24.05864231]
[1755192127214,5.80986759,194.18,194.13,24.05864231]
[1755192127419,0.66,194.18,194.13,24.05864231]
[1755192127621,29.92767992,194.22,194.16,24.05864231]
[1755192127820,5.86903761,194.22,194.15,24.05864231]
[1755192128029,24.05864231,194.21,194.12,0.67]
[1755192128338,24.05864231,194.21,194.15,24.05864231]
[1755192128504,29.20782261,194.21,194.13,5.15118734]
[1755192128820,5.1491803,194.21,194.15,24.05864231]
[1755192129022,5.1491803,194.21,194.13,5.15118734]
[1755192129023,0.06,194.22,194.19,24.05864231]
[1755192129534,0.06,194.22,194.2,24.05864231]
[1755192129708,0.06,194.22,194.19,0.67]
[1755192129709,0.06,194.22,194.19,24.72864231]
[1755192130113,0.06,194.22,194.18,24.05864231]
[1755192130320,0.06,194.22,194.21,24.05864231]
[1755192131915,0.06,194.22,194.21,29.87770775]
[1755192132524,0.06,194.22,194.21,29.20770775]
[1755192132841,0.06,194.22,194.2,5.1492842]
[1755192133142,0.06,194.22,194.21,24.05864231]
[1755192133531,0.06,194.22,194.17,40.51]
[1755192133716,0.06,194.22,194.17,24.05864231]
[1755192134346,0.72,194.22,194.15,39.72]
[1755192134549,0.72,194.22,194.21,24.05864231]
[1755192134550,0.06,194.22,194.21,24.05864231]
[1755192134758,0.06,194.22,194.21,29.20770775]
[1755192134925,0.06,194.22,194.21,69.59770775]
[1755192135122,0.06,194.22,194.21,44.86906544]
[1755192135324,0.06,194.22,194.21,68.92770775]
[1755192135543,0.06,194.22,194.21,69.59770775]
[1755192136045,24.71864231,194.34,194.24,26.0]
[1755192136219,0.66,194.34,194.28,24.05864231]
[1755192136420,0.66,194.34,194.24,26.0]
[1755192136421,24.05864231,194.35,194.29,24.05864231]
[1755192136615,5.14562107,194.34,194.28,24.05864231]
[1755192136844,24.05864231,194.31,194.26,39.72]
[1755192137027,5.14562107,194.34,194.26,39.72]
[1755192137028,24.05864231,194.29,194.26,39.72]
[1755192137232,24.71864231,194.28,194.26,39.72]
[1755192137428,0.66,194.27,194.22,24.05864231]
[1755192137633,0.66,194.3,194.22,29.20735088]
[1755192137835,24.05864231,194.29,194.23,24.05864231]
[1755192138132,0.66,194.33,194.28,24.05864231]
[1755192138935,29.2039988,194.35,194.29,24.05864231]
[1755192139354,24.05864231,194.34,194.28,24.05864231]
[1755192139652,29.8639988,194.35,194.29,24.05864231]
[1755192140029,0.66,194.4,194.29,0.67]
[1755192140253,4.68932664,194.42,194.36,24.05864231]
[1755192140442,24.05864231,194.4,194.34,39.74]
[1755192140631,24.71864231,194.39,194.33,24.05864231]
[1755192141145,0.66,194.39,194.33,24.05864231]
[1755192141333,24.05864231,194.4,194.34,24.05864231]
[1755192141649,5.14424196,194.4,194.32,44.88598873]
[1755192141850,24.05864231,194.39,194.33,24.05864231]
[1755192142248,29.20220877,194.42,194.36,24.05864231]
[1755192142461,5.14359306,194.42,194.36,24.05864231]
[1755192142660,29.20223537,194.42,194.36,24.05864231]
[1755192142875,5.80316897,194.44,194.36,18.29227875]
[1755192143166,0.66,194.44,194.4,18.29227875]
[1755192143369,18.29227875,194.41,194.37,39.72]
[1755192143536,24.09631167,194.4,194.34,18.29227875]
[1755192143741,0.66,194.42,194.35,18.29227875]
[1755192143938,18.29227875,194.4,194.34,18.29227875]
[1755192144166,18.29227875,194.41,194.35,18.29227875]
[1755192144337,19.01227875,194.42,194.36,18.29227875]
[1755192144534,0.06,194.42,194.41,18.29227875]
[1755192145056,0.06,194.42,194.38,39.74]
[1755192145259,0.72,194.42,194.38,39.74]
[1755192145456,5.80376832,194.41,194.38,39.74]
[1755192145642,0.66,194.4,194.31,26.67]
[1755192145834,18.29227875,194.38,194.32,39.74]
[1755192146032,0.66,194.4,194.28,26.0]
[1755192146033,18.29227875,194.34,194.28,18.29227875]
[1755192146231,0.66,194.33,194.29,18.29227875]
[1755192146455,15.10621557,194.4,194.29,18.29227875]
[1755192146456,18.29227875,194.35,194.29,18.29227875]
[1755192146637,18.29227875,194.36,194.3,18.29227875]
[1755192146832,18.29227875,194.35,194.26,0.67]
[1755192147046,0.66,194.37,194.26,0.67]
[1755192147260,0.66,194.37,194.32,18.29227875]
[1755192147462,5.80421745,194.4,194.35,18.29227875]
[1755192147646,40.52,194.42,194.36,18.29227875]
[1755192147846,5.8635458,194.42,194.36,18.29227875]
[1755192148047,0.06,194.42,194.4,18.29227875]
[1755192148656,0.06,194.42,194.39,18.29227875]
[1755192149048,0.06,194.42,194.4,18.29227875]
[1755192149267,0.06,194.42,194.37,0.67]
[1755192149559,18.29227875,194.38,194.25,5.14800514]
[1755192149762,18.29227875,194.31,194.25,23.44028389]
[1755192149984,18.29227875,194.31,194.25,18.29227875]
[1755192150153,18.29227875,194.32,194.26,18.29227875]
[1755192150485,18.95227875,194.33,194.27,18.29227875]
[1755192150688,0.67,194.37,194.28,18.29227875]
[1755192150861,5.14509158,194.36,194.26,0.7]
[1755192151186,5.14509158,194.36,194.3,18.29227875]
[1755192151485,18.29227875,194.35,194.29,18.29227875]
[1755192151848,5.14509158,194.36,194.29,18.29227875]
[1755192152067,18.96227875,194.37,194.31,18.29227875]
[1755192152274,0.67,194.4,194.35,18.29227875]
[1755192152474,18.29227875,194.41,194.35,18.29227875]
[1755192152683,5.14384404,194.41,194.35,18.29227875]
[1755192152976,5.14384404,194.41,194.29,39.86]
[1755192152977,23.43684094,194.38,194.29,39.86]
[1755192153285,23.43684094,194.38,194.23,25.74257711]
[1755192153286,18.29227875,194.32,194.24,40.54]
[1755192153452,33.11218325,194.38,194.25,18.29227875]
[1755192153652,0.67,194.33,194.26,18.29227875]
[1755192153956,18.96227875,194.33,194.27,18.29227875]
[1755192154157,18.29227875,194.31,194.24,39.84]
[1755192154384,18.29227875,194.29,194.24,39.84]
[1755192154549,15.10621557,194.34,194.22,18.29227875]
[1755192154755,0.67,194.34,194.27,18.29227875]
[1755192154958,5.81576834,194.34,194.29,18.29227875]
[1755192155162,18.29227875,194.37,194.31,18.29227875]
[1755192155361,25.71356833,194.45,194.29,0.7]
[1755192155362,12.85766932,194.44,194.35,18.29227875]
[1755192155561,18.29227875,194.41,194.35,18.29227875]
[1755192155782,0.73,194.42,194.34,18.29227875]
[1755192155964,18.29227875,194.4,194.31,0.7]
[1755192156171,18.29227875,194.4,194.34,18.29227875]
[1755192156371,0.73,194.42,194.31,0.7]
[1755192156689,18.29227875,194.4,194.34,18.29227875]
[1755192156882,0.06,194.42,194.37,18.29227875]
[1755192157190,0.06,194.42,194.31,5.14623949]
[1755192157191,0.06,194.42,194.38,0.7]
[1755192157375,0.06,194.42,194.39,0.7]
[1755192157577,0.06,194.42,194.37,18.29227875]
[1755192157787,0.06,194.42,194.36,39.94]
[1755192157788,23.49578918,194.42,194.36,58.23227875]
[1755192157984,23.49578918,194.42,194.21,0.03]
[1755192157985,18.29227875,194.39,194.32,18.29227875]
[1755192158495,0.06,194.42,194.38,18.29227875]
[1755192158801,0.06,194.42,194.41,18.29227875]
[1755192159294,0.06,194.42,194.41,18.99227875]
[1755192160497,0.06,194.42,194.41,24.13604707]
[1755192161176,0.06,194.42,194.41,5.84376832]
[1755192161373,0.06,194.42,194.41,58.27227875]
[1755192161684,0.06,194.42,194.41,58.97227875]
[1755192162075,0.06,194.42,194.41,58.27227875]
[1755192163106,0.06,194.42,194.41,63.41604707]
[1755192163485,0.06,194.42,194.41,64.11604707]
[1755192164305,0.06,194.42,194.41,58.27227875]
[1755192164601,0.06,194.42,194.41,64.11604707]
[1755192166100,0.06,194.42,194.41,63.25604707]
[1755192166294,0.06,194.42,194.41,63.95604707]
[1755192167486,1e-08,194.42,194.41,63.95604707]
[1755192168200,0.48489879,194.53,194.41,110.12226264]
[1755192168379,0.48489879,194.53,194.52,18.29227875]
[1755192168581,0.48489879,194.53,194.52,58.07227875]
[1755192169017,0.48489879,194.53,194.52,63.2131383]
[1755192169184,0.48489879,194.53,194.52,63.9131383]
[1755192169687,1e-08,194.53,194.52,63.9131383]
[1755192169980,6.487,194.6,194.55,26.0]
[1755192170184,6.487,194.6,194.59,18.29227875]
[1755192170485,6.487,194.6,194.59,58.07227875]
[1755192170689,6.487,194.6,194.59,63.21128897]
[1755192170888,6.487,194.6,194.59,63.27128897]
[1755192171310,6.487,194.6,194.59,24.13128897]
[1755192171512,6.487,194.6,194.59,23.43128897]
[1755192171691,6.487,194.6,194.59,63.23128897]
[1755192172207,6.487,194.6,194.59,63.21128897]
[1755192172414,6.487,194.6,194.59,18.29227875]
[1755192172592,6.487,194.6,194.59,58.07227875]
[1755192173696,6.487,194.6,194.59,39.78]
[1755192173891,6.487,194.6,194.59,58.07227875]
[1755192174281,6.487,194.6,194.59,18.29227875]
[1755192174484,6.487,194.6,194.59,23.43128897]
[1755192175315,6.487,194.6,194.59,24.13128897]
[1755192175616,6.487,194.6,194.54,0.7]
[1755192175795,7.157,194.6,194.55,39.72]
[1755192176121,0.67,194.59,194.54,18.29227875]
[1755192176416,0.67,194.58,194.54,18.29227875]
[1755192176595,11.62574614,194.6,194.55,18.29227875]
[1755192176795,5.13980263,194.56,194.54,18.29227875]
[1755192177108,0.67,194.55,194.54,18.29227875]
[1755192177401,0.67,194.55,194.49,39.74]
[1755192177606,0.67,194.55,194.53,18.29227875]
[1755192177806,0.67,194.54,194.53,18.29227875]
[1755192178820,12.29582994,194.6,194.53,18.29227875]
[1755192178991,12.29582994,194.6,194.57,18.29227875]
[1755192179192,0.67,194.59,194.57,18.29227875]
[1755192179508,6.487,194.6,194.58,18.29227875]
[1755192179812,6.487,194.6,194.59,18.29227875]
[1755192180199,6.487,194.6,194.55,39.86]
[1755192180403,6.487,194.6,194.52,17.99282988]
[1755192180404,6.487,194.6,194.59,18.29227875]
[1755192180605,6.487,194.6,194.56,39.86]
[1755192180814,6.487,194.6,194.58,18.29227875]
[1755192181018,6.487,194.6,194.59,18.29227875]
[1755192181303,6.487,194.6,194.59,18.99227875]
[1755192181710,6.487,194.6,194.59,18.29227875]
[1755192181909,6.487,194.6,194.59,58.17227875]
[1755192182305,6.487,194.6,194.59,39.88]
[1755192182522,6.487,194.6,194.59,58.17227875]
[1755192182722,6.487,194.6,194.59,39.88]
[1755192182925,6.487,194.6,194.58,18.29227875]
[1755192182926,7.157,194.6,194.58,18.29227875]
[1755192183140,6.487,194.6,194.59,18.29227875]
[1755192183533,6.487,194.6,194.56,39.88]
[1755192183739,6.487,194.6,194.59,18.29227875]
[1755192184038,6.487,194.6,194.56,39.88]
[1755192184039,7.157,194.6,194.56,39.88]
[1755192184215,0.67,194.59,194.57,18.29227875]
[1755192184412,6.487,194.6,194.57,18.29227875]
[1755192184610,7.157,194.6,194.57,18.29227875]
[1755192186549,0.67,194.59,194.57,18.29227875]
[1755192186849,0.67,194.58,194.54,18.29227875]
[1755192187040,0.67,194.57,194.54,18.29227875]
[1755192187215,0.67,194.56,194.53,58.07227875]
[1755192187410,5.13940563,194.58,194.53,58.07227875]
[1755192187411,0.67,194.55,194.53,39.78]
[1755192187618,5.80940563,194.58,194.53,58.07227875]
[1755192187818,5.80940563,194.58,194.44,42.06207634]
[1755192187819,0.67,194.57,194.47,31.14192313]
[1755192188020,18.29227875,194.49,194.4,6.487]
[1755192188218,18.29227875,194.49,194.39,0.7]
[1755192188219,18.96227875,194.48,194.39,0.7]
[1755192188448,18.29227875,194.47,194.41,18.29227875]
[1755192188623,18.96227875,194.48,194.42,18.29227875]
[1755192189044,23.43446006,194.47,194.41,18.29227875]
[1755192189249,23.43446006,194.47,194.38,45.66452825]
[1755192189420,18.29227875,194.44,194.38,39.82]
[1755192189628,18.29227875,194.41,194.37,0.03]
[1755192189927,18.29227875,194.38,194.37,0.03]
[1755192190127,18.96227875,194.38,194.37,0.03]
[1755192190527,0.67,194.43,194.37,18.32227875]
[1755192190745,18.29227875,194.41,194.37,0.03]
[1755192190918,5.14429754,194.39,194.37,0.03]
[1755192191121,0.67,194.38,194.37,0.03]
[1755192191726,18.96227875,194.38,194.37,0.03]
[1755192192428,34.06849432,194.38,194.37,0.03]
[1755192192630,34.06849432,194.38,194.26,37.68]
[1755192192631,34.06849432,194.38,194.26,18.29227875]
[1755192192849,18.29227875,194.34,194.28,18.29227875]
[1755192193154,24.10789982,194.34,194.33,0.03]
[1755192193922,53.68845744,194.39,194.33,0.03]
[1755192193923,5.1453678,194.35,194.33,0.03]
[1755192194131,27.96695943,194.39,194.33,0.03]
[1755192194132,0.67,194.37,194.33,18.32227875]
[1755192194348,23.43578188,194.43,194.36,18.29227875]